{"text_format":"1","workbook":"xlsx","n_sheets":2,"sheets":["Valutakonvertering","Valutakurser"],"not_rendered":{"charts":0,"images":1,"macros":1,"external_links":0,"defined_names":7,"comments":0,"pivot_tables":0},"unopened":[],"bounds":{"document_bytes":16777216,"sheet_cells":100000,"rows_first":2000,"rows_last":500,"rows_between":2000,"halvings":0,"cell_chars":16384,"cell_head_chars":4096},"cells_cut":0,"cells_raw":0,"read":"whole","date_system":"1900"}

{"sheet":"Valutakonvertering","index":0,"n_rows":10,"n_cols":5,"rows_kept":10,"cut":false,"hidden":false,"merged":[]}
[]
[]
[]
[]
[null,null,null,41,6000]
[]
[]
[]
[]
[null,null,null,27,{"$f":"IFERROR(IF(OR(FromCurrency=0,ToCurrency=0),\"\",FromAmount/OFFSET(Valutaer,FromCurrency-1,3,1,1)*OFFSET(Valutaer,ToCurrency-1,3,1,1)),\"\")","v":35760}]

{"sheet":"Valutakurser","index":1,"n_rows":59,"n_cols":5,"rows_kept":59,"cut":false,"hidden":false,"merged":[]}
["Valutakurser"]
["Dataene på dette arket er fra en MSN Money-nettspørring. Den oppdateres når du klikker knappen Oppdater valutakurser på Valutakonvertering-arket."]
[null,null,"Currency Rates Provided by MSN Money"]
[null,null,"Click here to visit MSN Money"]
[]
[null,"Listenavn","Navn","I NOK","  Per NOK"]
[null,{"$f":"IF(ISERROR(FIND(\" til norske kroner\",C7)),C7,LEFT(C7,FIND(\" til norske kroner\",C7)-1))","v":"Argentinske pesos"},"Argentinske pesos til norske kroner",0.22427,4.4589999999999996]
[null,{"$f":"IF(ISERROR(FIND(\" til norske kroner\",C8)),C8,LEFT(C8,FIND(\" til norske kroner\",C8)-1))","v":"Australske dollar"},"Australske dollar til norske kroner",0.98492999999999997,1.0149999999999999]
[null,"Bahrainske dinarer","Bahrainske dinarer til norske kroner",2.6482999999999999,0.378]
[null,"Bolivianske boliviano","Bolivianske boliviano til norske kroner",0.14451,6.92]
[null,"Brasilianske real","Brasilianske real til norske kroner",0.49278,2.0289999999999999]
[null,"Britiske pund","Britiske pund til norske kroner",1.5825,0.63200000000000001]
[null,"Kanadiske dollar","Kanadiske dollar til norske kroner",0.98038000000000003,1.02]
[null,"Chilenske pesos","Chilenske pesos til norske kroner",1.98E-3,504.8]
[null,"Kinesiske yuan","Kinesiske yuan til norske kroner",0.15812999999999999,6.3239999999999998]
[null,"Colombianske pesos","Colombianske pesos til norske kroner",5.5000000000000003E-4,1817]
[null,"Tsjekkiske koruna","Tsjekkiske koruna til norske kroner",5.0450000000000002E-2,19.823]
[null,"Danske kroner","Danske kroner til norske kroner",0.17208000000000001,5.8109999999999999]
[null,"Euro","Euro til norske kroner",1.2787999999999999,0.78200000000000003]
[null,"Egyptiske pund*","Egyptiske pund* til norske kroner",0.16556999999999999,6.04]
[null,"Hongkong-dollar","Hongkong-dollar til norske kroner",0.12877,7.766]
[null,"Ungarske forinter","Ungarske forinter til norske kroner",4.2900000000000004E-3,233.1]
[null,"Indiske rupi","Indiske rupi til norske kroner",1.8339999999999999E-2,54.54]
[null,"Indonesiske rupiah","Indonesiske rupiah til norske kroner",1.1E-4,9343]
[null,"Japanske yen","Japanske yen til norske kroner",1.2630000000000001E-2,79.209999999999994]
[null,"Jordanske dinarer","Jordanske dinarer til norske kroner",1.4065000000000001,0.71099999999999997]
[null,"Kenyanske shilling","Kenyanske shilling til norske kroner",1.184E-2,84.45]
[null,"Sør-Koreanske won","Sør-Koreanske won til norske kroner",8.5999999999999998E-4,1167]
[null,"Kuwaitiske dinarer","Kuwaitiske dinarer til norske kroner",3.5727000000000002,0.28000000000000003]
[null,"Marokkanske dirham","Marokkanske dirham til norske kroner",0.11468,8.7200000000000006]
[null,"Malayiske ringgit","Malayiske ringgit til norske kroner",0.31929000000000002,3.1320000000000001]
[null,"Meksikanske pesos","Meksikanske pesos til norske kroner",7.2590000000000002E-2,13.776999999999999]
[null,"Amerikanske dollar","Amerikanske dollar til norske kroner",0.16778999999999999,5.96]
[null,"Omanske rialer","Omanske rialer til norske kroner",2.5966999999999998,0.38500000000000001]
[null,"Peruanske ny sol","Peruanske ny sol til norske kroner",0.37411,2.673]
[null,"Filippinske pesos","Filippinske pesos til norske kroner",2.3140000000000001E-2,43.22]
[null,"Pakistanske rupi","Pakistanske rupi til norske kroner",1.0959999999999999E-2,91.27]
[null,"Saudiarabiske riyal","Saudiarabiske riyal til norske kroner",0.2666,3.7509999999999999]
[null,"Singapor-dollar","Singapor-dollar til norske kroner",0.78661999999999999,1.2709999999999999]
[null,"Sørafrikanske rand","Sørafrikanske rand til norske kroner",0.12053999999999999,8.2959999999999994]
[null,"Svenske kroner","Svenske kroner til norske kroner",0.13997000000000001,7.1440000000000001]
[null,"Sveitsiske franc","Sveitsiske franc til norske kroner",1.0648,0.93899999999999995]
[null,"Taiwanske dollar","Taiwanske dollar til norske kroner",3.3829999999999999E-2,29.561]
[null,"Thailandske baht","Thailandske baht til norske kroner",3.1940000000000003E-2,31.31]
[null,"Tunisiske dinarer","Tunisiske dinarer til norske kroner",0.63366999999999996,1.5780000000000001]
[null,"Emiratiske dirham","Emiratiske dirham til norske kroner",0.27221000000000001,3.6739999999999999]
[null,"Amerikanske dollar","Amerikanske dollar",1,1]
[null,"Venezuelanske bolivar","Venezuelanske bolivar til norske kroner",0.23282,4.2949999999999999]
[]
[]
[]
[null,null,"MSN Penger",null,"Oppdateringer for Microsoft Office"]
[null,null,"Oppdag investorverktøyer, kolonner og mer!",null,"Få de siste oppdateringene for Microsoft Office"]
[null,null,"Personvern"]
[null,null,"Juridisk"]
[null,null,"Annonsér"]
[null,null,"MSN Worldwide"]
[null,null,"Om våre annonser"]
[null,null,"© 2012 Microsoft "]